Body Name,ONS SNAC ID,Pay Date,Transaction No,Amount �,Supplier Name,Company Registration No,Department,Account Name,CIPFA Service Reporting
Swale Borough Council,29UM,01/02/2017,1147916,44.52,ALLSTAR BUSINESS SOLUTIONS LTD - (DT),1073098                  ,DEMOCRATIC & ELECTORAL SERVICES,Petrol/Derv & Oil,Corporate & Democratic Core
Swale Borough Council,29UM,01/02/2017,1147916,124.45,ALLSTAR BUSINESS SOLUTIONS LTD - (DT),1073098                  ,SERVICE DELIVERY,Petrol/Derv & Oil,Cultural and Related Services
Swale Borough Council,29UM,01/02/2017,1147916,180.57,ALLSTAR BUSINESS SOLUTIONS LTD - (DT),1073098                  ,ENVIRONMENTAL RESPONSE TEAM,Fuel For Contract Vehicles,Internal Trading Cost Centres
Swale Borough Council,29UM,01/02/2017,1147916,51.40,ALLSTAR BUSINESS SOLUTIONS LTD - (DT),1073098                  ,ENVIRONMENTAL RESPONSE TEAM,Fuel For Contract Vehicles,Environmental and Regulatory Services
Swale Borough Council,29UM,01/02/2017,1147954,672.70,BEVAN BRITTAN LLP,OC309219                 ,DIRECTOR OF CORPORATE SERVICES,Legal Fees,Internal Trading Cost Centres
Swale Borough Council,29UM,01/02/2017,1147623,48526.32,BLENWOOD LTD,4383277                  ,LEISURE & OPEN SPACES,Grounds Maint Suspense,Cultural and Related Services
Swale Borough Council,29UM,01/02/2017,1147624,1994.66,BLENWOOD LTD,4383277                  ,LEISURE & OPEN SPACES,Grounds Maint Suspense,Cultural and Related Services
Swale Borough Council,29UM,01/02/2017,1147860,2300.00,CABINET OFFICE,                         ,REVENUE SERVICES,Fees And Services,Central Services to the Public
Swale Borough Council,29UM,01/02/2017,1147920,400.00,CANTERBURY CITY COUNCIL,                         ,SERVICE DELIVERY,Grants & Subscriptions,Environmental and Regulatory Services
Swale Borough Council,29UM,01/02/2017,1147848,910.00,CARRINGTON WEST LIMITED,07344853                 ,PLANNING SERVICES,Agency/Contract Staff,Internal Trading Cost Centres
Swale Borough Council,29UM,01/02/2017,1147967,1190.00,CARRINGTON WEST LIMITED,07344853                 ,PLANNING SERVICES,Agency/Contract Staff,Internal Trading Cost Centres
Swale Borough Council,29UM,01/02/2017,1148035,4355.00,COLDWELL CONSTRUCTION LTD,4814340                  ,HOUSING SERVICES,Housing Renovation Grants,Not used in this Structure
Swale Borough Council,29UM,01/02/2017,1147847,5097.80,COMENSURA LTD,04085767                 ,HUMAN RESOURCES,Agency/Contract Staff,Internal Trading Cost Centres
Swale Borough Council,29UM,01/02/2017,1147839,2919.80,COMPLETE IT SYSTEMS LTD,06224858                 ,DEMOCRATIC & ELECTORAL SERVICES,Performance Fund Expenditure,Ledger/Suspense Codes
Swale Borough Council,29UM,01/02/2017,1147813,708.46,DEX PROPERTY MANAGEMENT,                         ,HOUSING SERVICES,RDS - Rent in Advance (Supporting People),Housing
Swale Borough Council,29UM,01/02/2017,1147930,3252.00,FMC (FABRICS & MAINT CONT) LTD,07509198                 ,COMMUNITY SAFETY,Capital Constuction - CIS Works,Not used in this Structure
Swale Borough Council,29UM,01/02/2017,1148032,24950.00,FMC (FABRICS & MAINT CONT) LTD,07509198                 ,COMMUNITY SAFETY,Capital Constuction - CIS Works,Not used in this Structure
Swale Borough Council,29UM,01/02/2017,1148032,6850.00,FMC (FABRICS & MAINT CONT) LTD,07509198                 ,COMMUNITY SAFETY,Capital Constuction - CIS Works,Not used in this Structure
Swale Borough Council,29UM,01/02/2017,1148032,3072.54,FMC (FABRICS & MAINT CONT) LTD,07509198                 ,COMMUNITY SAFETY,Capital Constuction - CIS Works,Not used in this Structure
Swale Borough Council,29UM,01/02/2017,1148036,4750.00,HARDINGS BUILDING SERVICES,                         ,HOUSING SERVICES,Housing Renovation Grants,Not used in this Structure
Swale Borough Council,29UM,01/02/2017,1148007,955.00,HEMPSTEAD HOUSE,                         ,ECONOMIC DEVELOPMENT,Fees And Services,Planning and Development Services
Swale Borough Council,29UM,01/02/2017,1148048,2916.00,HMCTS,                         ,REVENUE SERVICES,Court Costs,Central Services to the Public
Swale Borough Council,29UM,01/02/2017,1148006,276.25,HOLIDAY INN SITTINGBOURNE,                         ,ECONOMIC DEVELOPMENT,Hire Of Premises,Planning and Development Services
Swale Borough Council,29UM,01/02/2017,1148006,87.50,HOLIDAY INN SITTINGBOURNE,                         ,ECONOMIC DEVELOPMENT,Catering Provisions,Planning and Development Services
Swale Borough Council,29UM,01/02/2017,1148033,4797.57,HUBBARD & HOUGHTON CONSTRUCTION LTD,                         ,HOUSING SERVICES,Housing Renovation Grants,Not used in this Structure
Swale Borough Council,29UM,01/02/2017,1148034,750.00,HUBBARD & HOUGHTON LTD,                         ,HOUSING SERVICES,Housing Renovation Grants,Not used in this Structure
Swale Borough Council,29UM,01/02/2017,1148003,7760.00,K JONES ELECTRICAL,3668823362               ,COMMUNITY SAFETY,Capital Constuction - CIS Works,Not used in this Structure
Swale Borough Council,29UM,01/02/2017,1147917,419.00,KEEP BRITAIN TIDY,                         ,LEISURE & OPEN SPACES,Fees And Services,Cultural and Related Services
Swale Borough Council,29UM,01/02/2017,1147873,2334.71,KENT COUNTY COUNCIL,                         ,COMMISSIONING & CUSTOMER CONTACT,Contracts,Internal Trading Cost Centres
Swale Borough Council,29UM,01/02/2017,1147881,1000.00,KM CHARITY TEAM,                         ,MKS ENVIRONMENTAL SERVICES,Consultancy/Specialist Advice,Environmental and Regulatory Services
Swale Borough Council,29UM,01/02/2017,1147780,900.00,LAVAT CONSULTING LTD.,4810070                  ,ECONOMIC DEVELOPMENT,Consultancy/Specialist Advice,Planning and Development Services
Swale Borough Council,29UM,01/02/2017,1147826,300.00,LUBBE & SONS (BULBS) LTD,836902                   ,LEISURE & OPEN SPACES,Nursery Stock,Cultural and Related Services
Swale Borough Council,29UM,01/02/2017,1147991,1400.00,LUSHLAND,4289261                  ,PLANNING SERVICES,Fees And Services,Planning and Development Services
Swale Borough Council,29UM,01/02/2017,1147494,69671.36,MAIDSTONE BOROUGH COUNCIL,                         ,CONTRACT & PROCUREMENT,Private Contractors,Environmental and Regulatory Services
Swale Borough Council,29UM,01/02/2017,1147494,190338.33,MAIDSTONE BOROUGH COUNCIL,                         ,CONTRACT & PROCUREMENT,Private Contractors,Environmental and Regulatory Services
Swale Borough Council,29UM,01/02/2017,1147922,795.60,MARTIN CRANFIELD ASSOCIATES LIMITED,05210576                 ,MKS ENVIRONMENTAL SERVICES,Equipment Purchase,Environmental and Regulatory Services
Swale Borough Council,29UM,01/02/2017,1147923,1702.00,MATCHTECH,4426336                  ,PLANNING SERVICES,Agency/Contract Staff,Internal Trading Cost Centres
Swale Borough Council,29UM,01/02/2017,1147459,1987.20,MEDWAY ACCOMMODATION LIMITED,                         ,HOUSING SERVICES,B & B - Landlords Payments,Housing
Swale Borough Council,29UM,01/02/2017,1147459,414.00,MEDWAY ACCOMMODATION LIMITED,                         ,HOUSING SERVICES,B & B - Landlords Payments,Housing
Swale Borough Council,29UM,01/02/2017,1147601,2539.20,MEDWAY ACCOMMODATION LIMITED,                         ,HOUSING SERVICES,B & B - Landlords Payments,Housing
Swale Borough Council,29UM,01/02/2017,1147601,529.00,MEDWAY ACCOMMODATION LIMITED,                         ,HOUSING SERVICES,B & B - Landlords Payments,Housing
Swale Borough Council,29UM,01/02/2017,1147788,640.83,MEDWAY ACCOMMODATION LIMITED,                         ,HOUSING SERVICES,B & B - Landlords Payments,Housing
Swale Borough Council,29UM,01/02/2017,1147788,3076.00,MEDWAY ACCOMMODATION LIMITED,                         ,HOUSING SERVICES,B & B - Landlords Payments,Housing
Swale Borough Council,29UM,01/02/2017,1147777,621.63,NEW LEAF SUPPORT LTD,                         ,HOUSING SERVICES,B & B - Landlords Payments,Housing
Swale Borough Council,29UM,01/02/2017,1147817,2000.00,NORMAN BROMLEY PARTNERSHIP LLP,                         ,COMMUNITY SAFETY,Capitalised Fees And Charges,Not used in this Structure
Swale Borough Council,29UM,01/02/2017,1146783,8.50,O2 (UK) LTD,1743099                  ,COMMUNITY SAFETY,Cellphone,Planning and Development Services
Swale Borough Council,29UM,01/02/2017,1146783,7.00,O2 (UK) LTD,1743099                  ,COMMUNITY SAFETY,Cellphone,Planning and Development Services
Swale Borough Council,29UM,01/02/2017,1146783,43.00,O2 (UK) LTD,1743099                  ,COMMUNITY SAFETY,Cellphone,Environmental and Regulatory Services
Swale Borough Council,29UM,01/02/2017,1146783,9.50,O2 (UK) LTD,1743099                  ,TRANSFORMATION PROJECT,Cellphone,Corporate & Democratic Core
Swale Borough Council,29UM,01/02/2017,1146783,9.50,O2 (UK) LTD,1743099                  ,POLICY,Cellphone,Corporate & Democratic Core
Swale Borough Council,29UM,01/02/2017,1146783,15.20,O2 (UK) LTD,1743099                  ,PLANNING SERVICES,Cellphone,Planning and Development Services
Swale Borough Council,29UM,01/02/2017,1146783,10.00,O2 (UK) LTD,1743099                  ,PLANNING SERVICES,Cellphone,Planning and Development Services
Swale Borough Council,29UM,01/02/2017,1146783,19.50,O2 (UK) LTD,1743099                  ,EMERGENCY PLANNING,Cellphone,Central Services to the Public
Swale Borough Council,29UM,01/02/2017,1146783,26.57,O2 (UK) LTD,1743099                  ,SERVICE DELIVERY,Cellphone,Cultural and Related Services
Swale Borough Council,29UM,01/02/2017,1146783,40.20,O2 (UK) LTD,1743099                  ,HOUSING SERVICES,Cellphone,Housing
Swale Borough Council,29UM,01/02/2017,1146783,25.36,O2 (UK) LTD,1743099                  ,REVENUE SERVICES,Cellphone,Housing
Swale Borough Council,29UM,01/02/2017,1146783,7.00,O2 (UK) LTD,1743099                  ,HOUSING SERVICES,Cellphone,Housing
Swale Borough Council,29UM,01/02/2017,1146783,9.50,O2 (UK) LTD,1743099                  ,DIRECTOR OF CORPORATE SERVICES,Cellphone,Internal Trading Cost Centres
Swale Borough Council,29UM,01/02/2017,1146783,7.00,O2 (UK) LTD,1743099                  ,DEMOCRATIC & ELECTORAL SERVICES,Cellphone,Internal Trading Cost Centres
Swale Borough Council,29UM,01/02/2017,1146783,65.87,O2 (UK) LTD,1743099                  ,PROPERTY SERVICES,Cellphone,Internal Trading Cost Centres
Swale Borough Council,29UM,01/02/2017,1146783,7.00,O2 (UK) LTD,1743099                  ,ECONOMY & COMMUNITIES,Cellphone,Internal Trading Cost Centres
Swale Borough Council,29UM,01/02/2017,1146783,19.00,O2 (UK) LTD,1743099                  ,TOURISM & SPORTS DEVELOPMENT,Cellphone,Internal Trading Cost Centres
Swale Borough Council,29UM,01/02/2017,1146783,31.69,O2 (UK) LTD,1743099                  ,ECONOMIC DEVELOPMENT,Cellphone,Internal Trading Cost Centres
Swale Borough Council,29UM,01/02/2017,1146783,18.50,O2 (UK) LTD,1743099                  ,SERVICE DELIVERY,Cellphone,Internal Trading Cost Centres
Swale Borough Council,29UM,01/02/2017,1146783,137.53,O2 (UK) LTD,1743099                  ,CONTRACT & PROCUREMENT,Cellphone,Internal Trading Cost Centres
Swale Borough Council,29UM,01/02/2017,1146783,49.77,O2 (UK) LTD,1743099                  ,MKS ENVIRONMENTAL SERVICES,Cellphone,Internal Trading Cost Centres
Swale Borough Council,29UM,01/02/2017,1146783,58.35,O2 (UK) LTD,1743099                  ,MKS ENVIRONMENTAL SERVICES,Cellphone,Internal Trading Cost Centres
Swale Borough Council,29UM,01/02/2017,1146783,83.21,O2 (UK) LTD,1743099                  ,ENVIRONMENTAL RESPONSE TEAM,Cellphone,Internal Trading Cost Centres
Swale Borough Council,29UM,01/02/2017,1146783,12.19,O2 (UK) LTD,1743099                  ,COMMISSIONING & CUSTOMER CONTACT,Cellphone,Internal Trading Cost Centres
Swale Borough Council,29UM,01/02/2017,1146783,12.70,O2 (UK) LTD,1743099                  ,PLANNING SERVICES,Cellphone,Internal Trading Cost Centres
Swale Borough Council,29UM,01/02/2017,1146783,65.58,O2 (UK) LTD,1743099                  ,LEISURE & OPEN SPACES,Cellphone,Internal Trading Cost Centres
Swale Borough Council,29UM,01/02/2017,1146783,19.50,O2 (UK) LTD,1743099                  ,CHIEF EXECUTIVE,Cellphone,Internal Trading Cost Centres
Swale Borough Council,29UM,01/02/2017,1146783,9.50,O2 (UK) LTD,1743099                  ,DIRECTOR OF CORPORATE SERVICES,Cellphone,Internal Trading Cost Centres
Swale Borough Council,29UM,01/02/2017,1146783,9.50,O2 (UK) LTD,1743099                  ,DIRECTOR OF REGENERATION,Cellphone,Internal Trading Cost Centres
Swale Borough Council,29UM,01/02/2017,1146783,21.00,O2 (UK) LTD,1743099                  ,COMMISSIONING & CUSTOMER CONTACT,Cellphone,Internal Trading Cost Centres
Swale Borough Council,29UM,01/02/2017,1146783,7.29,O2 (UK) LTD,1743099                  ,COMMISSIONING & CUSTOMER CONTACT,Cellphone,Internal Trading Cost Centres
Swale Borough Council,29UM,01/02/2017,1146783,23.60,O2 (UK) LTD,1743099                  ,POLICY,Cellphone,Internal Trading Cost Centres
Swale Borough Council,29UM,01/02/2017,1146783,24.41,O2 (UK) LTD,1743099                  ,COMMUNICATIONS,Cellphone,Internal Trading Cost Centres
Swale Borough Council,29UM,01/02/2017,1146783,38.00,O2 (UK) LTD,1743099                  ,ENVIRONMENTAL RESPONSE TEAM,Cellphone,Internal Trading Cost Centres
Swale Borough Council,29UM,01/02/2017,1146783,38.98,O2 (UK) LTD,1743099                  ,MKS LEGAL SERVICES,Cellphone,Internal Trading Cost Centres
Swale Borough Council,29UM,01/02/2017,1146783,2.00,O2 (UK) LTD,1743099                  ,LEISURE & OPEN SPACES,Cellphone,Cultural and Related Services
Swale Borough Council,29UM,01/02/2017,1146783,2.00,O2 (UK) LTD,1743099                  ,HOUSING SERVICES,Cellphone,Housing
Swale Borough Council,29UM,01/02/2017,1146783,33.17,O2 (UK) LTD,1743099                  ,HOUSING SERVICES,Cellphone,Housing
Swale Borough Council,29UM,01/02/2017,1146783,26.61,O2 (UK) LTD,1743099                  ,ENVIRONMENTAL RESPONSE TEAM,Cellphone,Environmental and Regulatory Services
Swale Borough Council,29UM,01/02/2017,1146783,7.66,O2 (UK) LTD,1743099                  ,TOURISM & SPORTS DEVELOPMENT,Cellphone,Cultural and Related Services
Swale Borough Council,29UM,01/02/2017,1146783,32.00,O2 (UK) LTD,1743099                  ,HOUSING SERVICES,Cellphone,Housing
Swale Borough Council,29UM,01/02/2017,1147837,550.00,QUANTEC,                         ,PROPERTY SERVICES,Non-Planned Building Maintenance,Corporate & Democratic Core
Swale Borough Council,29UM,01/02/2017,1147838,550.00,QUANTEC,                         ,PROPERTY SERVICES,Non-Planned Building Maintenance,Corporate & Democratic Core
Swale Borough Council,29UM,01/02/2017,1147782,490.00,REARDON PROPERTIES,                         ,HOUSING SERVICES,B & B - Landlords Payments,Housing
Swale Borough Council,29UM,01/02/2017,1147783,875.00,REARDON PROPERTIES,                         ,HOUSING SERVICES,B & B - Landlords Payments,Housing
Swale Borough Council,29UM,01/02/2017,1147784,385.00,REARDON PROPERTIES,                         ,HOUSING SERVICES,B & B - Landlords Payments,Housing
Swale Borough Council,29UM,01/02/2017,1147785,735.00,REARDON PROPERTIES,                         ,HOUSING SERVICES,B & B - Landlords Payments,Housing
Swale Borough Council,29UM,01/02/2017,1147921,2900.00,S'BOURNE CHRISTMAS LIGHTS ASSOC,                         ,COMMUNITY SAFETY,Grants & Subscriptions,Central Services to the Public
Swale Borough Council,29UM,01/02/2017,1147929,600.00,SHEPPEY MATTERS,3946296                  ,COMMUNITY SAFETY,Grants & Subscriptions,Central Services to the Public
Swale Borough Council,29UM,01/02/2017,1147965,1000.00,STREET PASTORS SITTINGBOURNE,                         ,COMMUNITY SAFETY,Grants & Subscriptions,Planning and Development Services
Swale Borough Council,29UM,01/02/2017,1147965,2000.00,STREET PASTORS SITTINGBOURNE,                         ,COMMUNITY SAFETY,Fees And Services,Environmental and Regulatory Services
Swale Borough Council,29UM,01/02/2017,1147815,275.00,THAMESWAY TRANSPORT SERVICES LIMITED,                         ,HOUSING SERVICES,Homelessness  Prevention Services,Housing
Swale Borough Council,29UM,01/02/2017,1147833,400.00,THE MEADS COMMUNITY CENTRE TRUST,                         ,COMMUNITY SAFETY,Grants & Subscriptions,Central Services to the Public
Swale Borough Council,29UM,01/02/2017,1147891,1198.75,THE OYSTER PARTNERSHIP,05020374                 ,PLANNING SERVICES,Agency/Contract Staff,Internal Trading Cost Centres
Swale Borough Council,29UM,01/02/2017,1147196,16000.00,TIM MOYA ASSOCIATES,3028475                  ,LEISURE & OPEN SPACES,Consultancy/Specialist Advice,Cultural and Related Services
Swale Borough Council,29UM,01/02/2017,1147630,1670.00,TRAFALGAR TAVERN LTD,07999329                 ,HOUSING SERVICES,B & B - Landlords Payments,Housing
Swale Borough Council,29UM,01/02/2017,1147943,274.30,VANITORIALS LIMITED,3952938                  ,PROPERTY SERVICES,Cleaning Materials,Internal Trading Cost Centres
Swale Borough Council,29UM,01/02/2017,1147914,331.50,VENN GROUP LIMITED,                         ,MKS LEGAL SERVICES,Agency/Contract Staff,Internal Trading Cost Centres
Swale Borough Council,29UM,01/02/2017,1147915,953.25,VENN GROUP LIMITED,                         ,MKS LEGAL SERVICES,Agency/Contract Staff,Internal Trading Cost Centres
Swale Borough Council,29UM,01/02/2017,1147912,1569.75,VIVID RESOURCING LIMITED,06459262                 ,PLANNING SERVICES,Agency/Contract Staff,Internal Trading Cost Centres
Swale Borough Council,29UM,01/02/2017,1147910,900.00,VP PROPERTY DEVELOPMENT LTD,                         ,HOUSING SERVICES,B & B - Landlords Payments,Housing
Swale Borough Council,29UM,01/02/2017,1147756,295.00,WILLOW TREE HOME SOLUTIONS LTD,                         ,HOUSING SERVICES,Staying Put small repairs (contractors),Housing
Swale Borough Council,29UM,01/02/2017,1147757,420.00,WILLOW TREE HOME SOLUTIONS LTD,                         ,HOUSING SERVICES,Staying Put small repairs (contractors),Housing
Swale Borough Council,29UM,01/02/2017,1147774,416.00,WILLOW TREE HOME SOLUTIONS LTD,                         ,HOUSING SERVICES,Staying Put small repairs (contractors),Housing
Swale Borough Council,29UM,01/02/2017,1147950,266.00,WILLOW TREE HOME SOLUTIONS LTD,                         ,HOUSING SERVICES,Staying Put small repairs (contractors),Housing
Swale Borough Council,29UM,01/02/2017,1147707,2429.00,WYG ENVIRONMENT PLANNING TRANSPORT LTD,3050297                  ,CONTRACT & PROCUREMENT,Waste and Recycling Promotion / Comm's Projects,Environmental and Regulatory Services
Swale Borough Council,29UM,08/02/2017,1148166,620.00,A T BLINDS,                         ,PROPERTY SERVICES,Buildings Maintenance,Corporate & Democratic Core
Swale Borough Council,29UM,08/02/2017,1148122,400.00,A.C MACKLIN FENCING,10311550                 ,LEISURE & OPEN SPACES,Maintenance - Grounds,Cultural and Related Services
Swale Borough Council,29UM,08/02/2017,1148122,260.00,A.C MACKLIN FENCING,10311550                 ,LEISURE & OPEN SPACES,Maintenance - Grounds,Cultural and Related Services
Swale Borough Council,29UM,08/02/2017,1147104,4327.17,AGILE APPLICATIONS LIMITED,7443094                  ,PLANNING SERVICES,Computer Equipment & Materials,Central Services to the Public
Swale Borough Council,29UM,08/02/2017,1147983,945.75,AMETHYST HORTICULTURE LTD,4464660                  ,LEISURE & OPEN SPACES,Maintenance - Grounds,Cultural and Related Services
Swale Borough Council,29UM,08/02/2017,1148101,500.00,ARDEN THEATRE GROUP,                         ,TOURISM & SPORTS DEVELOPMENT,Grants & Subscriptions,Cultural and Related Services
Swale Borough Council,29UM,08/02/2017,1147963,1994.66,BLENWOOD LTD,4383277                  ,LEISURE & OPEN SPACES,Grounds Maint Suspense,Cultural and Related Services
Swale Borough Council,29UM,08/02/2017,1148113,12100.00,BMR CONSTRUCTION LTD,08434080                 ,COMMUNITY SAFETY,Capitalised Fees And Charges,Not used in this Structure
Swale Borough Council,29UM,08/02/2017,1148207,4732.85,BT REDCARE,1800000                  ,COMMUNITY SAFETY,CCTV Line Rental,Environmental and Regulatory Services
Swale Borough Council,29UM,08/02/2017,1147821,950.00,CART ASSIST LIMITED,                         ,COMMISSIONING & CUSTOMER CONTACT,Performance Fund Expenditure,Ledger/Suspense Codes
Swale Borough Council,29UM,08/02/2017,1148102,3333.33,CHALKWELL COACH HIRE LTD,2520842                  ,PLANNING SERVICES,Payments in Year,Ledger/Suspense Codes
Swale Borough Council,29UM,08/02/2017,1148151,450.00,CHEGWORTH GRAPHIC,7683594                  ,ECONOMY & COMMUNITIES,Communities Fund Expenditure,Ledger/Suspense Codes
Swale Borough Council,29UM,08/02/2017,1148121,390.00,REDACTED PERSONAL INFORMATION,                         ,HOUSING SERVICES,Homelessness  Prevention Services,Housing
Swale Borough Council,29UM,08/02/2017,1148081,3195.21,COMENSURA LTD,04085767                 ,HUMAN RESOURCES,Agency/Contract Staff,Internal Trading Cost Centres
Swale Borough Council,29UM,08/02/2017,1148205,744.42,COMPLETE IT SYSTEMS LTD,06224858                 ,DEMOCRATIC & ELECTORAL SERVICES,Performance Fund Expenditure,Ledger/Suspense Codes
Swale Borough Council,29UM,08/02/2017,1148153,396.00,DISCLOSURE & BARRING SERVICE (DT),                         ,DIRECTOR OF CORPORATE SERVICES,Fees And Services,Environmental and Regulatory Services
Swale Borough Council,29UM,08/02/2017,1148190,750.00,REDACTED PERSONAL INFORMATION,                         ,HOUSING SERVICES,RDS - Landlord claim on Bond Scheme,Housing
Swale Borough Council,29UM,08/02/2017,1148149,292.95,GB SPORT & LEISURE UK LIMITED,7524601                  ,LEISURE & OPEN SPACES,Equipment Purchase,Cultural and Related Services
Swale Borough Council,29UM,08/02/2017,1148100,260.00,GROVE PARK ESTATE NEIGHBOURHOOD WATCH,                         ,COMMUNITY SAFETY,Grants & Subscriptions,Central Services to the Public
Swale Borough Council,29UM,08/02/2017,1148120,499.00,HBINFO LTD,5779046                  ,REVENUE SERVICES,Fees And Services,Housing
Swale Borough Council,29UM,08/02/2017,1148138,550.00,HMCTS (DT),                         ,MKS LEGAL SERVICES,Court Costs,Internal Trading Cost Centres
Swale Borough Council,29UM,08/02/2017,1148002,354.00,HUBBARD & HOUGHTON CONSTRUCTION LTD,                         ,HOUSING SERVICES,Staying Put small repairs (contractors),Housing
Swale Borough Council,29UM,08/02/2017,1148129,1550.00,JASMIL KENNELS,05595524                 ,ENVIRONMENTAL RESPONSE TEAM,Kennelling Of Dogs,Environmental and Regulatory Services
Swale Borough Council,29UM,08/02/2017,1148129,-110.00,JASMIL KENNELS,05595524                 ,ENVIRONMENTAL RESPONSE TEAM,Income collected by Dog Kennels,Environmental and Regulatory Services
Swale Borough Council,29UM,08/02/2017,1148076,1169.12,KENT COUNTY COUNCIL,                         ,SERVICE DELIVERY,Fees And Services,Highway and Transport Services
Swale Borough Council,29UM,08/02/2017,1147980,721.00,LILAC ESTATES,                         ,HOUSING SERVICES,B & B - Landlords Payments,Housing
Swale Borough Council,29UM,08/02/2017,1147984,721.00,LILAC ESTATES,                         ,HOUSING SERVICES,B & B - Landlords Payments,Housing
Swale Borough Council,29UM,08/02/2017,1148077,387.16,LYRECO UK LTD,                         ,PROPERTY SERVICES,Paper,Internal Trading Cost Centres
Swale Borough Council,29UM,08/02/2017,1147392,2500.00,MAGEES GUESTHOUSE,                         ,HOUSING SERVICES,B & B - Landlords Payments,Housing
Swale Borough Council,29UM,08/02/2017,1147528,2030.00,MAGEES GUESTHOUSE,                         ,HOUSING SERVICES,B & B - Landlords Payments,Housing
Swale Borough Council,29UM,08/02/2017,1147715,3430.00,MAGEES GUESTHOUSE,                         ,HOUSING SERVICES,B & B - Landlords Payments,Housing
Swale Borough Council,29UM,08/02/2017,1147824,3710.00,MAGEES GUESTHOUSE,                         ,HOUSING SERVICES,B & B - Landlords Payments,Housing
Swale Borough Council,29UM,08/02/2017,1148083,610.00,METRIC GROUP LTD,2560839                  ,CAR PARKS,Fees - Licence,Highway and Transport Services
Swale Borough Council,29UM,08/02/2017,1148103,1958.40,METRIC GROUP LTD,2560839                  ,CAR PARKS,Equipment Maintenance,Highway and Transport Services
Swale Borough Council,29UM,08/02/2017,1148107,250.00,REDACTED PERSONAL INFORMATION,                         ,TOURISM & SPORTS DEVELOPMENT,Grants & Subscriptions,Cultural and Related Services
Swale Borough Council,29UM,08/02/2017,1148192,650.00,REDACTED PERSONAL INFORMATION,                         ,HOUSING SERVICES,RDS - Landlord claim on Bond Scheme,Housing
Swale Borough Council,29UM,08/02/2017,1148191,868.70,REDACTED PERSONAL INFORMATION,                         ,HOUSING SERVICES,RDS - Landlord claim on Bond Scheme,Housing
Swale Borough Council,29UM,08/02/2017,1148106,350.00,REDACTED PERSONAL INFORMATION,                         ,TOURISM & SPORTS DEVELOPMENT,Grants & Subscriptions,Cultural and Related Services
Swale Borough Council,29UM,08/02/2017,1148108,5267.90,P BINNIE CONSULTANCY LTD,07794784                 ,ECONOMIC DEVELOPMENT,Consultancy/Specialist Advice,Planning and Development Services
Swale Borough Council,29UM,08/02/2017,1148242,15697.00,PEAC HOLDINGS (UK) LTD (DT),3088213                  ,LEISURE & OPEN SPACES,Contracts,Cultural and Related Services
Swale Borough Council,29UM,08/02/2017,1148125,290.33,PORTAKABIN LIMITED,685303                   ,LEISURE & OPEN SPACES,Maintenance - Grounds,Environmental and Regulatory Services
Swale Borough Council,29UM,08/02/2017,1148098,550.00,Q/BOROUGH & DIST NAVAL ENSIGN ASSOC,                         ,COMMUNITY SAFETY,Grants & Subscriptions,Central Services to the Public
Swale Borough Council,29UM,08/02/2017,1147925,5000.00,QUEENBOROUGH HARBOUR TRUST LTD,                         ,ECONOMY & COMMUNITIES,Regeneration Fund Expenditure,Ledger/Suspense Codes
Swale Borough Council,29UM,08/02/2017,1147986,490.00,REARDON PROPERTIES,                         ,HOUSING SERVICES,B & B - Landlords Payments,Housing
Swale Borough Council,29UM,08/02/2017,1147989,490.00,REARDON PROPERTIES,                         ,HOUSING SERVICES,B & B - Landlords Payments,Housing
Swale Borough Council,29UM,08/02/2017,1148085,580.00,RILEY'S REMOVALS,                         ,HOUSING SERVICES,Storage Expenses,Housing
Swale Borough Council,29UM,08/02/2017,1147966,1105.45,ROYAL MAIL GROUP LTD,4138203                  ,PROPERTY SERVICES,Postage,Holding Codes
Swale Borough Council,29UM,08/02/2017,1148142,759.30,RSP RAIL TRAVEL ACCOUNT - (DT),                         ,FINANCIAL SERVICES,Travel Warrants (Staff Travel),Internal Trading Cost Centres
Swale Borough Council,29UM,08/02/2017,1147971,26267.47,SERCO LEISURE OPERATING LIMITED,04687478                 ,LEISURE & OPEN SPACES,Buildings Maintenance,Cultural and Related Services
Swale Borough Council,29UM,08/02/2017,1148241,2968.00,SERCO PAISA LTD - (DT),04908482                 ,LEISURE & OPEN SPACES,Contracts,Cultural and Related Services
Swale Borough Council,29UM,08/02/2017,1148099,1300.00,SHEPPEY RUGBY FOOTBALL CLUB LTD,                         ,COMMUNITY SAFETY,Grants & Subscriptions,Central Services to the Public
Swale Borough Council,29UM,08/02/2017,1148097,250.00,SITTINGBOURNE RUGBY CLUB,                         ,COMMUNITY SAFETY,Grants & Subscriptions,Central Services to the Public
Swale Borough Council,29UM,08/02/2017,1148212,34.50,SODEXO MOTIVATION SOLUTIONS UK LTD,2680629                  ,HUMAN RESOURCES,Fees And Services,Corporate & Democratic Core
Swale Borough Council,29UM,08/02/2017,1147962,4125.00,SOLACE IN BUSINESS LTD,3150254                  ,DIRECTOR OF REGENERATION,Recruitment Consultants,Planning and Development Services
Swale Borough Council,29UM,08/02/2017,1147960,280.50,SUTCLIFFE PLAY LTD,435546                   ,LEISURE & OPEN SPACES,Equipment Purchase,Cultural and Related Services
Swale Borough Council,29UM,08/02/2017,1148001,2080.00,SYNERGY CONST & PROP CONSULT,                         ,COMMUNITY SAFETY,Capitalised Fees And Charges,Not used in this Structure
Swale Borough Council,29UM,08/02/2017,1148093,1295.00,THE OYSTER PARTNERSHIP,05020374                 ,PLANNING SERVICES,Agency/Contract Staff,Internal Trading Cost Centres
Swale Borough Council,29UM,08/02/2017,1148118,604.50,VENN GROUP LIMITED,                         ,MKS LEGAL SERVICES,Agency/Contract Staff,Internal Trading Cost Centres
Swale Borough Council,29UM,08/02/2017,1148119,1230.00,VENN GROUP LIMITED,                         ,MKS LEGAL SERVICES,Agency/Contract Staff,Internal Trading Cost Centres
Swale Borough Council,29UM,08/02/2017,1147913,1295.00,VIVID RESOURCING LIMITED,06459262                 ,PLANNING SERVICES,Agency/Contract Staff,Internal Trading Cost Centres
Swale Borough Council,29UM,08/02/2017,1148186,1505.20,WESTCOUNTRY GROUP,4314613                  ,REVENUE SERVICES,Stationery,Central Services to the Public
Swale Borough Council,29UM,08/02/2017,1148187,2400.00,WESTCOUNTRY GROUP,4314613                  ,REVENUE SERVICES,Stationery,Central Services to the Public
Swale Borough Council,29UM,08/02/2017,1148080,6417.00,WHITE RESIDENTIAL,                         ,HOUSING SERVICES,B & B - Landlords Payments,Housing
Swale Borough Council,29UM,08/02/2017,1147999,469.00,WILLOW TREE HOME SOLUTIONS LTD,                         ,HOUSING SERVICES,Staying Put small repairs (contractors),Housing
Swale Borough Council,29UM,08/02/2017,1148084,1600.00,WILLOW TREE HOME SOLUTIONS LTD,                         ,HOUSING SERVICES,Staying Put small repairs (contractors),Housing
Swale Borough Council,29UM,15/02/2017,1148251,450.00,A.C MACKLIN FENCING,10311550                 ,LEISURE & OPEN SPACES,Maintenance - Grounds,Cultural and Related Services
Swale Borough Council,29UM,15/02/2017,1148251,295.00,A.C MACKLIN FENCING,10311550                 ,LEISURE & OPEN SPACES,Maintenance - Grounds,Cultural and Related Services
Swale Borough Council,29UM,15/02/2017,1148368,835.10,ACORN MAINTENANCE SERVICES,3546898                  ,HOUSING SERVICES,Housing Renovation Grants,Not used in this Structure
Swale Borough Council,29UM,15/02/2017,1148370,11218.21,ACORN MAINTENANCE SERVICES,3546898                  ,HOUSING SERVICES,Housing Renovation Grants,Not used in this Structure
Swale Borough Council,29UM,15/02/2017,1148372,4663.00,ACORN MAINTENANCE SERVICES,3546898                  ,HOUSING SERVICES,Housing Renovation Grants,Not used in this Structure
Swale Borough Council,29UM,15/02/2017,1148380,6895.80,ACORN MAINTENANCE SERVICES,3546898                  ,HOUSING SERVICES,Housing Renovation Grants,Not used in this Structure
Swale Borough Council,29UM,15/02/2017,1148387,5606.82,ACORN MAINTENANCE SERVICES,3546898                  ,HOUSING SERVICES,Housing Renovation Grants,Not used in this Structure
Swale Borough Council,29UM,15/02/2017,1148139,12881.69,APCOA PARKING (UK) LTD,2572947                  ,CAR PARKS,Private Contractors,Highway and Transport Services
Swale Borough Council,29UM,15/02/2017,1148139,19322.54,APCOA PARKING (UK) LTD,2572947                  ,CAR PARKS,Private Contractors,Highway and Transport Services
Swale Borough Council,29UM,15/02/2017,1148140,132.51,APCOA PARKING (UK) LTD,2572947                  ,CAR PARKS,Private Contractors,Highway and Transport Services
Swale Borough Council,29UM,15/02/2017,1148140,198.76,APCOA PARKING (UK) LTD,2572947                  ,CAR PARKS,Private Contractors,Highway and Transport Services
Swale Borough Council,29UM,15/02/2017,1148381,4380.00,ASCENDIT LIFTS LTD,3493530                  ,HOUSING SERVICES,Housing Renovation Grants,Not used in this Structure
Swale Borough Council,29UM,15/02/2017,1148279,255.50,BAILEYS COFFEE SHOP AND SANDWICH BAR,                         ,PLANNING SERVICES,Fees And Services,Planning and Development Services
Swale Borough Council,29UM,15/02/2017,1148128,6595.20,BEMROSE MOBILE LTD,                         ,CAR PARKS,Fees - Licence,Highway and Transport Services
Swale Borough Council,29UM,15/02/2017,1147964,48526.32,BLENWOOD LTD,4383277                  ,LEISURE & OPEN SPACES,Grounds Maint Suspense,Cultural and Related Services
Swale Borough Council,29UM,15/02/2017,1148174,340.00,BLENWOOD LTD,4383277                  ,LEISURE & OPEN SPACES,Maintenance - Grounds,Cultural and Related Services
Swale Borough Council,29UM,15/02/2017,1148177,340.00,BLENWOOD LTD,4383277                  ,LEISURE & OPEN SPACES,Maintenance - Grounds,Cultural and Related Services
Swale Borough Council,29UM,15/02/2017,1148211,1969.34,BLENWOOD LTD,4383277                  ,LEISURE & OPEN SPACES,Grounds Contract Variations,Cultural and Related Services
Swale Borough Council,29UM,15/02/2017,1148278,946.97,CANON UK LTD,1264300                  ,PROPERTY SERVICES,Equipment Maintenance,Internal Trading Cost Centres
Swale Borough Council,29UM,15/02/2017,1148183,1295.00,CARRINGTON WEST LIMITED,07344853                 ,PLANNING SERVICES,Agency/Contract Staff,Internal Trading Cost Centres
Swale Borough Council,29UM,15/02/2017,1148152,1999.80,CHEGWORTH GRAPHIC,7683594                  ,COMMUNICATIONS,Signage,Internal Trading Cost Centres
Swale Borough Council,29UM,15/02/2017,1148172,2300.00,CLARKES SPORTS STUDIO,                         ,LEISURE & OPEN SPACES,Contract Cleaning,Cultural and Related Services
Swale Borough Council,29UM,15/02/2017,1148173,666.66,CLARKES SPORTS STUDIO,                         ,LEISURE & OPEN SPACES,Grants & Subscriptions,Cultural and Related Services
Swale Borough Council,29UM,15/02/2017,1148232,3174.16,COMENSURA LTD,04085767                 ,HUMAN RESOURCES,Agency/Contract Staff,Internal Trading Cost Centres
Swale Borough Council,29UM,15/02/2017,1148164,276.94,DHA PLANNING,2683290                  ,PLANNING SERVICES,Fees And Services,Internal Trading Cost Centres
Swale Borough Council,29UM,15/02/2017,1148375,2000.00,DOLPHIN STAIRLIFTS (KENT),04181846                 ,HOUSING SERVICES,Housing Renovation Grants,Not used in this Structure
Swale Borough Council,29UM,15/02/2017,1148367,6315.00,HANDICARE ACCESSIBILITY LIMITED,4109393                  ,HOUSING SERVICES,Housing Renovation Grants,Not used in this Structure
Swale Borough Council,29UM,15/02/2017,1148181,10755.00,HERITAGE STONE RESTORATION CO. LIMITED,1877637                  ,LEISURE & OPEN SPACES,Buildings Maintenance,Environmental and Regulatory Services
Swale Borough Council,29UM,15/02/2017,1148386,3595.05,HIGHER ELEVATION LTD,                         ,HOUSING SERVICES,Housing Renovation Grants,Not used in this Structure
Swale Borough Council,29UM,15/02/2017,1148369,3653.93,HUBBARD & HOUGHTON CONSTRUCTION LTD,                         ,HOUSING SERVICES,Housing Renovation Grants,Not used in this Structure
Swale Borough Council,29UM,15/02/2017,1148373,3706.00,HUBBARD & HOUGHTON CONSTRUCTION LTD,                         ,HOUSING SERVICES,Housing Renovation Grants,Not used in this Structure
Swale Borough Council,29UM,15/02/2017,1148385,7200.00,HUBBARD & HOUGHTON CONSTRUCTION LTD,                         ,HOUSING SERVICES,Housing Renovation Grants,Not used in this Structure
Swale Borough Council,29UM,15/02/2017,1148389,2706.00,HUBBARD & HOUGHTON CONSTRUCTION LTD,                         ,HOUSING SERVICES,Housing Renovation Grants,Not used in this Structure
Swale Borough Council,29UM,15/02/2017,4500556,-3706.00,HUBBARD & HOUGHTON CONSTRUCTION LTD,                         ,HOUSING SERVICES,Housing Renovation Grants,Not used in this Structure
Swale Borough Council,29UM,15/02/2017,1148216,500.00,IAN SAYER & Co,                         ,COMMUNITY SAFETY,Capitalised Fees And Charges,Not used in this Structure
Swale Borough Council,29UM,15/02/2017,1148233,5000.00,INFORM CPI LTD,                         ,REVENUE SERVICES,NNDR Additional Rateable Values,Central Services to the Public
Swale Borough Council,29UM,15/02/2017,1148295,700.00,INFORM CPI LTD,                         ,REVENUE SERVICES,NNDR Additional Rateable Values,Central Services to the Public
Swale Borough Council,29UM,15/02/2017,1148371,5580.00,J & D SYSTEMS,                         ,HOUSING SERVICES,Housing Renovation Grants,Not used in this Structure
Swale Borough Council,29UM,15/02/2017,1148379,344.28,REDACTED PERSONAL INFORMATION,                         ,HOUSING SERVICES,Housing Renovation Grants,Not used in this Structure
Swale Borough Council,29UM,15/02/2017,1148219,1000.00,KENT WILDLIFE TRUST,239992                   ,TOURISM & SPORTS DEVELOPMENT,Grants & Subscriptions,Cultural and Related Services
Swale Borough Council,29UM,15/02/2017,1148244,300.00,LEMAR LIMITED,04350292                 ,LEISURE & OPEN SPACES,Maintenance - Grounds,Environmental and Regulatory Services
Swale Borough Council,29UM,15/02/2017,1148244,395.00,LEMAR LIMITED,04350292                 ,LEISURE & OPEN SPACES,Maintenance - Grounds,Environmental and Regulatory Services
Swale Borough Council,29UM,15/02/2017,1148317,1526.09,REDACTED PERSONAL INFORMATION,                         ,PLANNING SERVICES,Fees And Services,Planning and Development Services
Swale Borough Council,29UM,15/02/2017,1148064,2798.00,LYRECO UK LTD,                         ,PROPERTY SERVICES,Equipment Purchase,Corporate & Democratic Core
Swale Borough Council,29UM,15/02/2017,1148185,1702.00,MATCHTECH,4426336                  ,PLANNING SERVICES,Agency/Contract Staff,Internal Trading Cost Centres
Swale Borough Council,29UM,15/02/2017,1148382,612.20,MCL (KENT) LIMITED,                         ,HOUSING SERVICES,Housing Renovation Grants,Not used in this Structure
Swale Borough Council,29UM,15/02/2017,1148282,979.18,MPS MARKETING SERVICES LIMITED,6360656                  ,DEMOCRATIC & ELECTORAL SERVICES,Fees And Services,Central Services to the Public
Swale Borough Council,29UM,15/02/2017,1148249,850.00,OASIS ACADEMY ISLE OF SHEPPEY,                         ,COMMUNITY SAFETY,Grants & Subscriptions,Central Services to the Public
Swale Borough Council,29UM,15/02/2017,1148209,1416.00,OBSIDIAN SECURITY LTD.,                         ,PROPERTY SERVICES,Non-Planned Building Maintenance,Corporate & Democratic Core
Swale Borough Council,29UM,15/02/2017,1147144,8000.00,PETER BRETT ASSOCIATES LLP,OC334398                 ,PLANNING SERVICES,Fees And Services,Planning and Development Services
Swale Borough Council,29UM,15/02/2017,1147955,260.00,PHOENIX SOFTWARE LTD,                         ,MKS ENVIRONMENTAL SERVICES,"Books, Journals & e - resources",Internal Trading Cost Centres
Swale Borough Council,29UM,15/02/2017,1148259,627.00,PHOENIX SOFTWARE LTD,                         ,COMMUNICATIONS,Materials - Artwork,Internal Trading Cost Centres
Swale Borough Council,29UM,15/02/2017,1148377,638.65,PRECEPT CS LIMITED,07311462                 ,HOUSING SERVICES,Housing Renovation Grants,Not used in this Structure
Swale Borough Council,29UM,15/02/2017,1148384,470.11,PRECEPT CS LIMITED,07311462                 ,HOUSING SERVICES,Housing Renovation Grants,Not used in this Structure
Swale Borough Council,29UM,15/02/2017,1148115,1010.50,QS CONSULT,                         ,COMMUNITY SAFETY,Capitalised Fees And Charges,Not used in this Structure
Swale Borough Council,29UM,15/02/2017,1148116,375.00,RURAL PLANNING LTD,4426249                  ,PLANNING SERVICES,Fees And Services,Planning and Development Services
Swale Borough Council,29UM,15/02/2017,1148388,4750.00,REDACTED PERSONAL INFORMATION,                         ,HOUSING SERVICES,Housing Renovation Grants,Not used in this Structure
Swale Borough Council,29UM,15/02/2017,1148250,500.00,SITTINGBOURNE IN BLOOM,                         ,COMMUNITY SAFETY,Grants & Subscriptions,Central Services to the Public
Swale Borough Council,29UM,15/02/2017,1148222,360.00,SITTINGBOURNE RETAIL ASSOCIATION,                         ,TOURISM & SPORTS DEVELOPMENT,Grants & Subscriptions,Cultural and Related Services
Swale Borough Council,29UM,15/02/2017,1148218,300.00,SITTINGBOURNE RUGBY CLUB UNION FC,                         ,COMMUNITY SAFETY,Grants & Subscriptions,Central Services to the Public
Swale Borough Council,29UM,15/02/2017,1148374,1820.00,SOUTH EAST BUILDING CO LTD,1786838                  ,HOUSING SERVICES,Housing Renovation Grants,Not used in this Structure
Swale Borough Council,29UM,15/02/2017,1148378,3655.72,SOUTH EAST BUILDING CO LTD,1786838                  ,HOUSING SERVICES,Housing Renovation Grants,Not used in this Structure
Swale Borough Council,29UM,15/02/2017,1148383,5530.00,SOUTH EAST BUILDING CO LTD,1786838                  ,HOUSING SERVICES,Housing Renovation Grants,Not used in this Structure
Swale Borough Council,29UM,15/02/2017,1148390,2655.72,SOUTH EAST BUILDING CO LTD,1786838                  ,HOUSING SERVICES,Housing Renovation Grants,Not used in this Structure
Swale Borough Council,29UM,15/02/2017,4500557,-3655.72,SOUTH EAST BUILDING CO LTD,1786838                  ,HOUSING SERVICES,Housing Renovation Grants,Not used in this Structure
Swale Borough Council,29UM,15/02/2017,1148314,270.00,SURVEYORS AND VALUERS LTD,                         ,PROPERTY SERVICES,Consultancy/Specialist Advice,Trading Undertaking
Swale Borough Council,29UM,15/02/2017,1148223,2000.00,SWALE BUSINESS AWARDS,                         ,ECONOMIC DEVELOPMENT,Fees And Services,Planning and Development Services
Swale Borough Council,29UM,15/02/2017,1148276,250.00,THE BIG FISH BAND,                         ,COMMUNITY SAFETY,Grants & Subscriptions,Central Services to the Public
Swale Borough Council,29UM,15/02/2017,1148220,1230.00,THE CO-OPERATIVE FUNERALCARE,30808R                   ,MKS ENVIRONMENTAL SERVICES,Funeral Expenses,Environmental and Regulatory Services
Swale Borough Council,29UM,15/02/2017,1148217,400.00,THE FRIENDS OF MILTON REGIS COURT HALL,                         ,COMMUNITY SAFETY,Grants & Subscriptions,Central Services to the Public
Swale Borough Council,29UM,15/02/2017,1148184,2100.00,THE JOHN WOODWARD PARTNERSHIP,                         ,PLANNING SERVICES,Fees And Services,Planning and Development Services
Swale Borough Council,29UM,15/02/2017,1148248,1295.00,THE OYSTER PARTNERSHIP,05020374                 ,PLANNING SERVICES,Agency/Contract Staff,Internal Trading Cost Centres
Swale Borough Council,29UM,15/02/2017,1148143,265.00,THREE TOWNS OFFICE EQUIPMENT LTD,                         ,PROPERTY SERVICES,Furniture,Internal Trading Cost Centres
Swale Borough Council,29UM,15/02/2017,1148287,6899.00,VANWISE GROUP LIMITED,                         ,FINANCIAL SERVICES,Payments in Year,Ledger/Suspense Codes
Swale Borough Council,29UM,15/02/2017,1148269,585.00,VENN GROUP LIMITED,                         ,MKS LEGAL SERVICES,Agency/Contract Staff,Internal Trading Cost Centres
Swale Borough Council,29UM,15/02/2017,1148270,1230.00,VENN GROUP LIMITED,                         ,MKS LEGAL SERVICES,Agency/Contract Staff,Internal Trading Cost Centres
Swale Borough Council,29UM,15/02/2017,1148255,720.00,VISIT KENT,                         ,TOURISM & SPORTS DEVELOPMENT,Fees And Services,Cultural and Related Services
Swale Borough Council,29UM,15/02/2017,1148117,1467.15,VIVID RESOURCING LIMITED,06459262                 ,PLANNING SERVICES,Agency/Contract Staff,Internal Trading Cost Centres
Swale Borough Council,29UM,15/02/2017,1148256,2135.00,VIVID RESOURCING LIMITED,06459262                 ,PLANNING SERVICES,Agency/Contract Staff,Internal Trading Cost Centres
Swale Borough Council,29UM,15/02/2017,1148257,1452.75,VIVID RESOURCING LIMITED,06459262                 ,PLANNING SERVICES,Agency/Contract Staff,Internal Trading Cost Centres
Swale Borough Council,29UM,15/02/2017,1148031,575.46,WHISTL UK LIMITED,04417047                 ,REVENUE SERVICES,Postage,Central Services to the Public
Swale Borough Council,29UM,15/02/2017,1148031,4.45,WHISTL UK LIMITED,04417047                 ,PLANNING SERVICES,Postage,Planning and Development Services
Swale Borough Council,29UM,15/02/2017,1148031,287.73,WHISTL UK LIMITED,04417047                 ,REVENUE SERVICES,Postage,Housing
Swale Borough Council,29UM,15/02/2017,1148031,31.29,WHISTL UK LIMITED,04417047                 ,LEISURE & OPEN SPACES,Postage,Internal Trading Cost Centres
Swale Borough Council,29UM,15/02/2017,1148031,18.41,WHISTL UK LIMITED,04417047                 ,CAR PARKS,Postage,Internal Trading Cost Centres
Swale Borough Council,29UM,15/02/2017,1148031,57.70,WHISTL UK LIMITED,04417047                 ,PROPERTY SERVICES,Postage,Holding Codes
Swale Borough Council,29UM,15/02/2017,1148031,210.65,WHISTL UK LIMITED,04417047                 ,DEMOCRATIC & ELECTORAL SERVICES,Postage,Central Services to the Public
Swale Borough Council,29UM,15/02/2017,1148132,392.12,WHISTL UK LIMITED,04417047                 ,REVENUE SERVICES,Postage,Central Services to the Public
Swale Borough Council,29UM,15/02/2017,1148132,5.05,WHISTL UK LIMITED,04417047                 ,PLANNING SERVICES,Postage,Planning and Development Services
Swale Borough Council,29UM,15/02/2017,1148132,196.05,WHISTL UK LIMITED,04417047                 ,REVENUE SERVICES,Postage,Housing
Swale Borough Council,29UM,15/02/2017,1148132,1.63,WHISTL UK LIMITED,04417047                 ,LEISURE & OPEN SPACES,Postage,Internal Trading Cost Centres
Swale Borough Council,29UM,15/02/2017,1148132,16.85,WHISTL UK LIMITED,04417047                 ,CAR PARKS,Postage,Internal Trading Cost Centres
Swale Borough Council,29UM,15/02/2017,1148132,1.37,WHISTL UK LIMITED,04417047                 ,ECONOMIC DEVELOPMENT,Postage,Internal Trading Cost Centres
Swale Borough Council,29UM,15/02/2017,1148132,44.00,WHISTL UK LIMITED,04417047                 ,PROPERTY SERVICES,Postage,Holding Codes
Swale Borough Council,29UM,15/02/2017,1148132,76.30,WHISTL UK LIMITED,04417047                 ,DEMOCRATIC & ELECTORAL SERVICES,Postage,Central Services to the Public
Swale Borough Council,29UM,15/02/2017,1148133,1255.89,WHISTL UK LIMITED,04417047                 ,REVENUE SERVICES,Postage,Central Services to the Public
Swale Borough Council,29UM,15/02/2017,1148133,3.29,WHISTL UK LIMITED,04417047                 ,PLANNING SERVICES,Postage,Planning and Development Services
Swale Borough Council,29UM,15/02/2017,1148133,627.94,WHISTL UK LIMITED,04417047                 ,REVENUE SERVICES,Postage,Housing
Swale Borough Council,29UM,15/02/2017,1148133,0.27,WHISTL UK LIMITED,04417047                 ,LEISURE & OPEN SPACES,Postage,Internal Trading Cost Centres
Swale Borough Council,29UM,15/02/2017,1148133,22.26,WHISTL UK LIMITED,04417047                 ,CAR PARKS,Postage,Internal Trading Cost Centres
Swale Borough Council,29UM,15/02/2017,1148133,6.28,WHISTL UK LIMITED,04417047                 ,ENVIRONMENTAL RESPONSE TEAM,Postage,Internal Trading Cost Centres
Swale Borough Council,29UM,15/02/2017,1148133,0.54,WHISTL UK LIMITED,04417047                 ,ECONOMIC DEVELOPMENT,Postage,Internal Trading Cost Centres
Swale Borough Council,29UM,15/02/2017,1148133,148.72,WHISTL UK LIMITED,04417047                 ,PROPERTY SERVICES,Postage,Holding Codes
Swale Borough Council,29UM,15/02/2017,1148133,296.94,WHISTL UK LIMITED,04417047                 ,DEMOCRATIC & ELECTORAL SERVICES,Postage,Central Services to the Public
Swale Borough Council,29UM,15/02/2017,1148148,620.38,WHISTL UK LIMITED,04417047                 ,REVENUE SERVICES,Postage,Central Services to the Public
Swale Borough Council,29UM,15/02/2017,1148148,4.35,WHISTL UK LIMITED,04417047                 ,PLANNING SERVICES,Postage,Planning and Development Services
Swale Borough Council,29UM,15/02/2017,1148148,310.18,WHISTL UK LIMITED,04417047                 ,REVENUE SERVICES,Postage,Housing
Swale Borough Council,29UM,15/02/2017,1148148,17.74,WHISTL UK LIMITED,04417047                 ,LEISURE & OPEN SPACES,Postage,Internal Trading Cost Centres
Swale Borough Council,29UM,15/02/2017,1148148,18.09,WHISTL UK LIMITED,04417047                 ,CAR PARKS,Postage,Internal Trading Cost Centres
Swale Borough Council,29UM,15/02/2017,1148148,43.99,WHISTL UK LIMITED,04417047                 ,PROPERTY SERVICES,Postage,Holding Codes
Swale Borough Council,29UM,15/02/2017,1148148,153.57,WHISTL UK LIMITED,04417047                 ,DEMOCRATIC & ELECTORAL SERVICES,Postage,Central Services to the Public
Swale Borough Council,29UM,15/02/2017,1148194,414.00,WILLOW TREE HOME SOLUTIONS LTD,                         ,HOUSING SERVICES,Staying Put small repairs (contractors),Housing
Swale Borough Council,29UM,15/02/2017,1148318,312.00,WILLOW TREE HOME SOLUTIONS LTD,                         ,HOUSING SERVICES,Staying Put small repairs (contractors),Housing
Swale Borough Council,29UM,15/02/2017,1148376,1532.34,WILLOW TREE HOME SOLUTIONS LTD,                         ,HOUSING SERVICES,Housing Renovation Grants,Not used in this Structure
Swale Borough Council,29UM,22/02/2017,1148529,1602.00,ASCENDIT LIFTS LTD,3493530                  ,HOUSING SERVICES,Housing Renovation Grants,Not used in this Structure
Swale Borough Council,29UM,22/02/2017,1148309,1855.00,BT DEVELOPMENTS,                         ,HOUSING SERVICES,B & B - Landlords Payments,Housing
Swale Borough Council,29UM,22/02/2017,1148336,2064.72,CAPITA BUSINESS SERVICES LTD,                         ,REVENUE SERVICES,Fees And Services,Housing
Swale Borough Council,29UM,22/02/2017,1148348,1295.00,CARRINGTON WEST LIMITED,07344853                 ,PLANNING SERVICES,Agency/Contract Staff,Internal Trading Cost Centres
Swale Borough Council,29UM,22/02/2017,1147919,8876.40,CCS MEDIA LTD,                         ,MKS ICT,Payments in Year,Ledger/Suspense Codes
Swale Borough Council,29UM,22/02/2017,1148301,2228.33,CHILDREN AND FAMILIES LTD,                         ,COMMUNITY SAFETY,Fees And Services,Planning and Development Services
Swale Borough Council,29UM,22/02/2017,1147640,2375.44,CIPFA BUSINESS LTD,2376684                  ,FINANCIAL SERVICES,Computer Equipment & Materials,Internal Trading Cost Centres
Swale Borough Council,29UM,22/02/2017,1148531,5024.58,COLDWELL CONSTRUCTION LTD,4814340                  ,HOUSING SERVICES,Housing Renovation Grants,Not used in this Structure
Swale Borough Council,29UM,22/02/2017,1148401,2754.64,COMENSURA LTD,04085767                 ,HUMAN RESOURCES,Agency/Contract Staff,Internal Trading Cost Centres
Swale Borough Council,29UM,22/02/2017,1148550,2459.34,CO-OP BANK PLC - (DT),                         ,REVENUE SERVICES,Bank Charges Pay Point,Central Services to the Public
Swale Borough Council,29UM,22/02/2017,1148550,34.20,CO-OP BANK PLC - (DT),                         ,REVENUE SERVICES,Bank Charges Pay Point,Central Services to the Public
Swale Borough Council,29UM,22/02/2017,1148550,54.90,CO-OP BANK PLC - (DT),                         ,REVENUE SERVICES,Bank Charges Pay Point,Housing
Swale Borough Council,29UM,22/02/2017,1148550,5.40,CO-OP BANK PLC - (DT),                         ,EXCHEQUER,Bank Charges Pay Point,Internal Trading Cost Centres
Swale Borough Council,29UM,22/02/2017,1148550,43.20,CO-OP BANK PLC - (DT),                         ,EXCHEQUER,Bank Charges Pay Point,Internal Trading Cost Centres
Swale Borough Council,29UM,22/02/2017,1148082,7712.86,COVALENT SOFTWARE LIMITED,4645635                  ,POLICY,Payments in Year,Ledger/Suspense Codes
Swale Borough Council,29UM,22/02/2017,1148526,10255.82,DAYTRAD LIMITED,7654373                  ,HOUSING SERVICES,Housing Renovation Grants,Not used in this Structure
Swale Borough Council,29UM,22/02/2017,1148527,6365.19,DAYTRAD LIMITED,7654373                  ,HOUSING SERVICES,Housing Renovation Grants,Not used in this Structure
Swale Borough Council,29UM,22/02/2017,1148528,3556.36,DOLPHIN STAIRLIFTS (KENT),04181846                 ,HOUSING SERVICES,Housing Renovation Grants,Not used in this Structure
Swale Borough Council,29UM,22/02/2017,1148427,3356.65,ELECTORAL REFORM SERVICES,2263092                  ,DEMOCRATIC & ELECTORAL SERVICES,Printing - External Funded by Grant & Other Income,Central Services to the Public
Swale Borough Council,29UM,22/02/2017,1148137,3454.04,FIRST UTILITY LTD,05070887                 ,HOUSING SERVICES,Electricity,Housing
Swale Borough Council,29UM,22/02/2017,1148137,101.01,FIRST UTILITY LTD,05070887                 ,HOUSING SERVICES,Gas,Housing
Swale Borough Council,29UM,22/02/2017,1148137,-951.88,FIRST UTILITY LTD,05070887                 ,HOUSING SERVICES,Electricity,Housing
Swale Borough Council,29UM,22/02/2017,1148137,0.95,FIRST UTILITY LTD,05070887                 ,HOUSING SERVICES,Electricity,Housing
Swale Borough Council,29UM,22/02/2017,1148137,-35.00,FIRST UTILITY LTD,05070887                 ,HOUSING SERVICES,Gas,Housing
Swale Borough Council,29UM,22/02/2017,1148137,0.95,FIRST UTILITY LTD,05070887                 ,HOUSING SERVICES,Gas,Housing
Swale Borough Council,29UM,22/02/2017,1148433,241.98,FIRST UTILITY LTD,05070887                 ,HOUSING SERVICES,Electricity,Housing
Swale Borough Council,29UM,22/02/2017,1148433,41.18,FIRST UTILITY LTD,05070887                 ,HOUSING SERVICES,Gas,Housing
Swale Borough Council,29UM,22/02/2017,1148433,1.90,FIRST UTILITY LTD,05070887                 ,HOUSING SERVICES,Electricity,Housing
Swale Borough Council,29UM,22/02/2017,1148433,1.90,FIRST UTILITY LTD,05070887                 ,HOUSING SERVICES,Gas,Housing
Swale Borough Council,29UM,22/02/2017,1148504,-750.00,REDACTED PERSONAL INFORMATION,                         ,HOUSING SERVICES,RDS - Landlord claim on Bond Scheme,Housing
Swale Borough Council,29UM,22/02/2017,1148505,750.00,REDACTED PERSONAL INFORMATION,                         ,HOUSING SERVICES,RDS - Landlord claim on Bond Scheme,Housing
Swale Borough Council,29UM,22/02/2017,1148483,14734.17,HALAROSE LIMITED,1362834                  ,DEMOCRATIC & ELECTORAL SERVICES,Equipment Maintenance,Central Services to the Public
Swale Borough Council,29UM,22/02/2017,1148400,1000.00,HUBBARD & HOUGHTON CONSTRUCTION LTD,                         ,HOUSING SERVICES,Staying Put small repairs (contractors),Housing
Swale Borough Council,29UM,22/02/2017,1148363,375.00,INTEGRA ASSOCIATES LIMITED,03054901                 ,EXCHEQUER,Consultancy/Specialist Advice,Internal Trading Cost Centres
Swale Borough Council,29UM,22/02/2017,1148264,400.00,J N CLEARANCE,                         ,CONTRACT & PROCUREMENT,"Clearance Of Sites,Tyres Etc",Environmental and Regulatory Services
Swale Borough Council,29UM,22/02/2017,1148265,3175.00,J N CLEARANCE,                         ,CONTRACT & PROCUREMENT,"Clearance Of Sites,Tyres Etc",Environmental and Regulatory Services
Swale Borough Council,29UM,22/02/2017,1148028,16451.63,KGB CLEANING & SUPPORT SERVICES LTD,                         ,CONTRACT & PROCUREMENT,Private Contractors,Environmental and Regulatory Services
Swale Borough Council,29UM,22/02/2017,1148432,2945.00,REDACTED PERSONAL INFORMATION,                         ,MKS ENVIRONMENTAL SERVICES,Proceeds From Estate,Environmental and Regulatory Services
Swale Borough Council,29UM,22/02/2017,1148189,11351.85,KINGDOM SECURITY LIMITED,2795197                  ,ENVIRONMENTAL RESPONSE TEAM,Fees And Services,Planning and Development Services
Swale Borough Council,29UM,22/02/2017,1148565,45.00,LAND REGISTRY - (DT),                         ,DIRECTOR OF CORPORATE SERVICES,Fees - Land Registry,Corporate & Democratic Core
Swale Borough Council,29UM,22/02/2017,1148565,38.00,LAND REGISTRY - (DT),                         ,PROPERTY SERVICES,Fees - Land Registry,Trading Undertaking
Swale Borough Council,29UM,22/02/2017,1148565,263.00,LAND REGISTRY - (DT),                         ,REVENUE SERVICES,Fees - Land Registry,Central Services to the Public
Swale Borough Council,29UM,22/02/2017,1148565,18.00,LAND REGISTRY - (DT),                         ,PLANNING SERVICES,Fees - Land Registry,Planning and Development Services
Swale Borough Council,29UM,22/02/2017,1148565,106.00,LAND REGISTRY - (DT),                         ,PLANNING SERVICES,Fees - Land Registry,Planning and Development Services
Swale Borough Council,29UM,22/02/2017,1148565,12.00,LAND REGISTRY - (DT),                         ,ECONOMIC DEVELOPMENT,Fees - Land Registry,Planning and Development Services
Swale Borough Council,29UM,22/02/2017,1148565,9.00,LAND REGISTRY - (DT),                         ,HOUSING SERVICES,Fees - Land Registry,Housing
Swale Borough Council,29UM,22/02/2017,1148565,21.00,LAND REGISTRY - (DT),                         ,REVENUE SERVICES,Fees - Land Registry,Housing
Swale Borough Council,29UM,22/02/2017,1148565,3.00,LAND REGISTRY - (DT),                         ,REVENUE SERVICES,Fees - Land Registry,Housing
Swale Borough Council,29UM,22/02/2017,1148565,9.00,LAND REGISTRY - (DT),                         ,CONTRACT & PROCUREMENT,Fees - Land Registry,Internal Trading Cost Centres
Swale Borough Council,29UM,22/02/2017,1148565,33.00,LAND REGISTRY - (DT),                         ,MKS ENVIRONMENTAL SERVICES,Fees - Land Registry,Internal Trading Cost Centres
Swale Borough Council,29UM,22/02/2017,1148565,36.00,LAND REGISTRY - (DT),                         ,ENVIRONMENTAL RESPONSE TEAM,Fees - Land Registry,Internal Trading Cost Centres
Swale Borough Council,29UM,22/02/2017,1148565,6.00,LAND REGISTRY - (DT),                         ,PLANNING SERVICES,Fees - Land Registry,Internal Trading Cost Centres
Swale Borough Council,29UM,22/02/2017,1148565,6.00,LAND REGISTRY - (DT),                         ,LEISURE & OPEN SPACES,Fees - Land Registry,Internal Trading Cost Centres
Swale Borough Council,29UM,22/02/2017,1148565,30.00,LAND REGISTRY - (DT),                         ,MKS LEGAL SERVICES,Fees - Land Registry,Internal Trading Cost Centres
Swale Borough Council,29UM,22/02/2017,1148565,106.00,LAND REGISTRY - (DT),                         ,LEISURE & OPEN SPACES,Fees - Land Registry,Cultural and Related Services
Swale Borough Council,29UM,22/02/2017,1148565,18.00,LAND REGISTRY - (DT),                         ,HOUSING SERVICES,Fees - Land Registry,Housing
Swale Borough Council,29UM,22/02/2017,1148565,80.00,LAND REGISTRY - (DT),                         ,HOUSING SERVICES,Fees - Land Registry,Housing
Swale Borough Council,29UM,22/02/2017,1148252,784.00,LILAC ESTATES,                         ,HOUSING SERVICES,B & B - Landlords Payments,Housing
Swale Borough Council,29UM,22/02/2017,1148253,721.00,LILAC ESTATES,                         ,HOUSING SERVICES,B & B - Landlords Payments,Housing
Swale Borough Council,29UM,22/02/2017,1148486,1050.00,LIVE WITH LAURA LTD,                         ,HOUSING SERVICES,RDS - Rent in Advance (Supporting People),Housing
Swale Borough Council,29UM,22/02/2017,1146947,2880.00,MAGEES GUESTHOUSE,                         ,HOUSING SERVICES,B & B - Landlords Payments,Housing
Swale Borough Council,29UM,22/02/2017,1147091,2595.00,MAGEES GUESTHOUSE,                         ,HOUSING SERVICES,B & B - Landlords Payments,Housing
Swale Borough Council,29UM,22/02/2017,1148005,3720.00,MAGEES GUESTHOUSE,                         ,HOUSING SERVICES,B & B - Landlords Payments,Housing
Swale Borough Council,29UM,22/02/2017,1148188,-325.00,MAGEES GUESTHOUSE,                         ,HOUSING SERVICES,B & B - Landlords Payments,Housing
Swale Borough Council,29UM,22/02/2017,1148275,3605.00,MAGEES GUESTHOUSE,                         ,HOUSING SERVICES,B & B - Landlords Payments,Housing
Swale Borough Council,29UM,22/02/2017,1148414,3200.00,MAGEES GUESTHOUSE,                         ,HOUSING SERVICES,B & B - Landlords Payments,Housing
Swale Borough Council,29UM,22/02/2017,1148509,315.00,MAGEES GUESTHOUSE,                         ,HOUSING SERVICES,B & B - Landlords Payments,Housing
Swale Borough Council,29UM,22/02/2017,1148293,64279.46,MAIDSTONE BOROUGH COUNCIL,                         ,CAR PARKS,Staff Costs Recovery - MKS,Internal Trading Cost Centres
Swale Borough Council,29UM,22/02/2017,1148327,15882.75,MAIDSTONE BOROUGH COUNCIL,                         ,CONTRACT & PROCUREMENT,Equipment Purchase,Environmental and Regulatory Services
Swale Borough Council,29UM,22/02/2017,1148328,7054.16,MAIDSTONE BOROUGH COUNCIL,                         ,CONTRACT & PROCUREMENT,Equipment Purchase,Environmental and Regulatory Services
Swale Borough Council,29UM,22/02/2017,1148329,14813.80,MAIDSTONE BOROUGH COUNCIL,                         ,CONTRACT & PROCUREMENT,Equipment Purchase,Environmental and Regulatory Services
Swale Borough Council,29UM,22/02/2017,1148455,6172.32,MAIDSTONE BOROUGH COUNCIL,                         ,MKS LEGAL SERVICES,MKLS running costs,Internal Trading Cost Centres
Swale Borough Council,29UM,22/02/2017,1148556,929163.00,MAIDSTONE BOROUGH COUNCIL - DT,                         ,FINANCIAL SERVICES,Tariff to Gvt,Taxation and Non-Specific Grant Income
Swale Borough Council,29UM,22/02/2017,1148286,750.00,MEADOWFIELD SCHOOL,                         ,CAR PARKS,Fees And Services,Highway and Transport Services
Swale Borough Council,29UM,22/02/2017,1147994,4160.00,MEDWAY ACCOMMODATION LIMITED,                         ,HOUSING SERVICES,B & B - Landlords Payments,Housing
Swale Borough Council,29UM,22/02/2017,1147994,866.67,MEDWAY ACCOMMODATION LIMITED,                         ,HOUSING SERVICES,B & B - Landlords Payments,Housing
Swale Borough Council,29UM,22/02/2017,1148182,2568.00,MEDWAY ACCOMMODATION LIMITED,                         ,HOUSING SERVICES,B & B - Landlords Payments,Housing
Swale Borough Council,29UM,22/02/2017,1148182,535.00,MEDWAY ACCOMMODATION LIMITED,                         ,HOUSING SERVICES,B & B - Landlords Payments,Housing
Swale Borough Council,29UM,22/02/2017,1148475,2648.80,MEDWAY ACCOMMODATION LIMITED,                         ,HOUSING SERVICES,B & B - Landlords Payments,Housing
Swale Borough Council,29UM,22/02/2017,1148475,551.83,MEDWAY ACCOMMODATION LIMITED,                         ,HOUSING SERVICES,B & B - Landlords Payments,Housing
Swale Borough Council,29UM,22/02/2017,1148476,2562.40,MEDWAY ACCOMMODATION LIMITED,                         ,HOUSING SERVICES,B & B - Landlords Payments,Housing
Swale Borough Council,29UM,22/02/2017,1148476,533.83,MEDWAY ACCOMMODATION LIMITED,                         ,HOUSING SERVICES,B & B - Landlords Payments,Housing
Swale Borough Council,29UM,22/02/2017,1148284,26685.00,METRIC GROUP LTD,2560839                  ,CAR PARKS,Equipment,Not used in this Structure
Swale Borough Council,29UM,22/02/2017,1148344,4275.00,METRIC GROUP LTD,2560839                  ,CAR PARKS,Equipment,Not used in this Structure
Swale Borough Council,29UM,22/02/2017,1148358,850.00,REDACTED PERSONAL INFORMATION,                         ,ENVIRONMENTAL RESPONSE TEAM,Legal Fees,Internal Trading Cost Centres
Swale Borough Council,29UM,22/02/2017,1148358,170.00,REDACTED PERSONAL INFORMATION,                         ,ENVIRONMENTAL RESPONSE TEAM,Legal Fees,Internal Trading Cost Centres
Swale Borough Council,29UM,22/02/2017,1148320,1159.90,NEWAUTO LTD T/A MOGOUK,3051444                  ,DIRECTOR OF CORPORATE SERVICES,Equipment Purchase,Internal Trading Cost Centres
Swale Borough Council,29UM,22/02/2017,1148422,484.40,ONLINE PLAYGROUNDS,3515119                  ,LEISURE & OPEN SPACES,Equipment Purchase,Cultural and Related Services
Swale Borough Council,29UM,22/02/2017,1148261,293.15,PHOENIX SOFTWARE LTD,                         ,SERVICE DELIVERY,Computer Equipment & Materials,Internal Trading Cost Centres
Swale Borough Council,29UM,22/02/2017,1148285,2672.50,PREMIER INN (ATOS) DT,                         ,HOUSING SERVICES,B & B - Landlords Payments,Housing
Swale Borough Council,29UM,22/02/2017,1148350,4500.00,QUINNEYS LTD,4355510                  ,SERVICE DELIVERY,Private Contractors - CIS,Cultural and Related Services
Swale Borough Council,29UM,22/02/2017,1148350,11026.66,QUINNEYS LTD,4355510                  ,SERVICE DELIVERY,Private Contractors - CIS,Cultural and Related Services
Swale Borough Council,29UM,22/02/2017,1148566,85.00,RBS PURCHASING CARD (DT) - HOLIDAY INN,,DEMOCRATIC & ELECTORAL SERVICES,Conference,Corporate & Democratic Core
Swale Borough Council,29UM,22/02/2017,1148567,51.75,RBS PURCHASING CARD (DT) - SAINSBURY'S,,TOURISM & SPORTS DEVELOPMENT,Catering Provisions,Cultural and Related Services
Swale Borough Council,29UM,22/02/2017,1148567,20.00,RBS PURCHASING CARD (DT) - THE BIG CAT SANCTUARY,,TOURISM & SPORTS DEVELOPMENT,Fees & Services,Cultural and Related Services
Swale Borough Council,29UM,22/02/2017,1148568,206.33,RBS PURCHASING CARD (DT) - THE FLAG LOFT,                         ,PROPERTY SERVICES,Equipment Purchase,Corporate & Democratic Core
Swale Borough Council,29UM,22/02/2017,1148568,100.00,RBS PURCHASING CARD (DT) - THERMOMETERS DIRECT,                         ,PROPERTY SERVICES,Equipment Purchase,Corporate & Democratic Core
Swale Borough Council,29UM,22/02/2017,1148568,-39.59,RBS PURCHASING CARD (DT) - TRADE FRAMES,                         ,PROPERTY SERVICES,Equipment Purchase,Corporate & Democratic Core
Swale Borough Council,29UM,22/02/2017,1148568,194.16,RBS PURCHASING CARD (DT) - EASYLOCKS,                         ,CONTRACT & PROCUREMENT,Non-Planned Building Maintenance,Environmental and Regulatory Services
Swale Borough Council,29UM,22/02/2017,1148569,22.50,RBS PURCHASING CARD (DT) - BAILEYS COFFEE SHOP,,DEMOCRATIC & ELECTORAL SERVICES,Hospitality Allowance - Mayor,Corporate & Democratic Core
Swale Borough Council,29UM,22/02/2017,1148569,19.45,RBS PURCHASING CARD (DT) - MORRISONS,,DEMOCRATIC & ELECTORAL SERVICES,Petrol/Derv & Oil,Corporate & Democratic Core
Swale Borough Council,29UM,22/02/2017,1148570,23.60,RBS PURCHASING CARD (DT) - SAINSBURY'S,,DIRECTOR OF CORPORATE SERVICES,Catering Provisions,Internal Trading Cost Centres
Swale Borough Council,29UM,22/02/2017,1148570,33.25,RBS PURCHASING CARD (DT) - TESCO,,EMERGENCY PLANNING,Equipment Purchase,Central Services to the Public
Swale Borough Council,29UM,22/02/2017,1148570,24.25,RBS PURCHASING CARD (DT) - SAINSBURY'S,,DEMOCRATIC & ELECTORAL SERVICES,Catering Provisions,Corporate & Democratic Core
Swale Borough Council,29UM,21/02/2017,1148571,20.00,RBS PURCHASING CARD (DT) - AUTOWASH,,HOUSING SERVICES,General Maintenance,Housing
Swale Borough Council,29UM,22/02/2017,1148572,325.00,RBS PURCHASING CARD (DT) - INCISIVE MEDIA,                         ,POLICY,Grants & Subscriptions,Environmental and Regulatory Services
Swale Borough Council,29UM,22/02/2017,1148572,140.00,RBS PURCHASING CARD (DT) WP HEMMING GROUP,                         ,POLICY,Grants & Subscriptions,Internal Trading Cost Centres
Swale Borough Council,29UM,22/02/2017,1148573,2.49,RBS PURCHASING CARD (DT) - AMAZON,,REVENUE SERVICES,Stationery,Housing
Swale Borough Council,29UM,22/02/2017,1148573,3.45,RBS PURCHASING CARD (DT) - AMAZON,,REVENUE SERVICES,Stationery,Housing
Swale Borough Council,29UM,22/02/2017,1148573,5.99,RBS PURCHASING CARD (DT) - AMAZON,,REVENUE SERVICES,Stationery,Housing
Swale Borough Council,29UM,22/02/2017,1148574,74.59,RBS PURCHASING CARD (DT) - ASDA,,HOUSING SERVICES,Fuel For Contract Vehicles,Housing
Swale Borough Council,29UM,22/02/2017,1148574,41.60,RBS PURCHASING CARD (DT) - WICKES,,HOUSING SERVICES,Staying Put - Materials,Housing
Swale Borough Council,29UM,22/02/2017,1148574,35.00,RBS PURCHASING CARD (DT) - WILKO,,HOUSING SERVICES,Staying Put - Materials,Housing
Swale Borough Council,29UM,22/02/2017,1148575,5.10,RBS PURCHASING CARD (DT) - PAYBYPHONE PARKING TWBC,,MKS LEGAL SERVICES,Car Park Fees,Internal Trading Cost Centres
Swale Borough Council,29UM,22/02/2017,1148576,79.10,RBS PURCHASING CARD (DT) - SOUTHEASTERN TRAINS,,HOUSING SERVICES,Travel Warrants (Staff Travel),Housing
Swale Borough Council,29UM,22/02/2017,1148577,9.00,RBS PURCHASING CARD (DT) - TIMPSON,                         ,PROPERTY SERVICES,Equipment Purchase,Cultural and Related Services
Swale Borough Council,29UM,22/02/2017,1148577,5.87,RBS PURCHASING CARD (DT) - TOOLSTATION,                         ,PROPERTY SERVICES,Non-Planned Building Maintenance,Cultural and Related Services
Swale Borough Council,29UM,22/02/2017,1148577,10.10,RBS PURCHASING CARD (DT) - JOHNSTONES,                         ,PROPERTY SERVICES,Non-Planned Building Maintenance,Corporate & Democratic Core
Swale Borough Council,29UM,22/02/2017,1148577,99.17,RBS PURCHASING CARD (DT) - TOOLSTATION,                         ,PROPERTY SERVICES,Non-Planned Building Maintenance,Corporate & Democratic Core
Swale Borough Council,29UM,22/02/2017,1148577,7.34,RBS PURCHASING CARD (DT) - C.E.F.,                         ,PROPERTY SERVICES,Non-Planned Building Maintenance,Corporate & Democratic Core
Swale Borough Council,29UM,22/02/2017,1148577,8.27,RBS PURCHASING CARD (DT) - TOOLSTATION,                         ,PROPERTY SERVICES,Equipment Purchase,Corporate & Democratic Core
Swale Borough Council,29UM,22/02/2017,1148577,4.92,RBS PURCHASING CARD (DT) - LTR SUPPLIES,                         ,PROPERTY SERVICES,Equipment Purchase,Corporate & Democratic Core
Swale Borough Council,29UM,22/02/2017,1148577,3.90,RBS PURCHASING CARD (DT) - TOOLSTATION,                         ,PROPERTY SERVICES,Equipment Purchase,Corporate & Democratic Core
Swale Borough Council,29UM,22/02/2017,1148577,88.00,RBS PURCHASING CARD (DT) - HEATING PLUMBING SUPPLIES,                         ,CONTRACT & PROCUREMENT,Non-Planned Building Maintenance,Environmental and Regulatory Services
Swale Borough Council,29UM,22/02/2017,1148577,13.94,RBS PURCHASING CARD (DT) - TOOLSTATION,                         ,CONTRACT & PROCUREMENT,Non-Planned Building Maintenance,Environmental and Regulatory Services
Swale Borough Council,29UM,22/02/2017,1148577,64.98,RBS PURCHASING CARD (DT) - WICKES,                         ,CONTRACT & PROCUREMENT,Non-Planned Building Maintenance,Environmental and Regulatory Services
Swale Borough Council,29UM,22/02/2017,1148578,105.00,RBS PURCHASING CARD (DT) - MONEYCLAIM.GOV,                         ,PROPERTY SERVICES,Court Costs,Trading Undertaking
Swale Borough Council,29UM,22/02/2017,1148578,223.86,RBS PURCHASING CARD (DT) - OYEZ FORMS,                         ,MKS LEGAL SERVICES,"Books, Journals & e - resources",Internal Trading Cost Centres
Swale Borough Council,29UM,23/02/2017,1148578,128.00,RBS PURCHASING CARD (DT) - CILEX,,MKS LEGAL SERVICES,Training - Courses,Corporate & Democratic Core
Swale Borough Council,29UM,24/02/2017,1148578,364.00,RBS PURCHASING CARD (DT) - CILEX,,MKS LEGAL SERVICES,Training - Courses,Corporate & Democratic Core
Swale Borough Council,29UM,25/02/2017,1148578,128.00,RBS PURCHASING CARD (DT) - CILEX,,MKS LEGAL SERVICES,Training - Courses,Corporate & Democratic Core
Swale Borough Council,29UM,26/02/2017,1148578,62.50,RBS PURCHASING CARD (DT) - COOPERS & CO. SOLICITORS,,MKS LEGAL SERVICES,Training - Courses,Corporate & Democratic Core
Swale Borough Council,29UM,27/02/2017,1148578,190.00,RBS PURCHASING CARD (DT) - CILEX,,MKS LEGAL SERVICES,Training - Courses,Corporate & Democratic Core
Swale Borough Council,29UM,22/02/2017,1147987,795.00,REARDON PROPERTIES,                         ,HOUSING SERVICES,B & B - Landlords Payments,Housing
Swale Borough Council,29UM,22/02/2017,1147988,665.00,REARDON PROPERTIES,                         ,HOUSING SERVICES,B & B - Landlords Payments,Housing
Swale Borough Council,29UM,22/02/2017,1148158,490.00,REARDON PROPERTIES,                         ,HOUSING SERVICES,B & B - Landlords Payments,Housing
Swale Borough Council,29UM,22/02/2017,1148159,490.00,REARDON PROPERTIES,                         ,HOUSING SERVICES,B & B - Landlords Payments,Housing
Swale Borough Council,29UM,22/02/2017,1148160,755.00,REARDON PROPERTIES,                         ,HOUSING SERVICES,B & B - Landlords Payments,Housing
Swale Borough Council,29UM,22/02/2017,1148161,490.00,REARDON PROPERTIES,                         ,HOUSING SERVICES,B & B - Landlords Payments,Housing
Swale Borough Council,29UM,22/02/2017,1148303,490.00,REARDON PROPERTIES,                         ,HOUSING SERVICES,B & B - Landlords Payments,Housing
Swale Borough Council,29UM,22/02/2017,1148304,875.00,REARDON PROPERTIES,                         ,HOUSING SERVICES,B & B - Landlords Payments,Housing
Swale Borough Council,29UM,22/02/2017,1148305,455.00,REARDON PROPERTIES,                         ,HOUSING SERVICES,B & B - Landlords Payments,Housing
Swale Borough Council,29UM,22/02/2017,1148306,735.00,REARDON PROPERTIES,                         ,HOUSING SERVICES,B & B - Landlords Payments,Housing
Swale Borough Council,29UM,22/02/2017,1148462,735.00,REARDON PROPERTIES,                         ,HOUSING SERVICES,B & B - Landlords Payments,Housing
Swale Borough Council,29UM,22/02/2017,1148463,490.00,REARDON PROPERTIES,                         ,HOUSING SERVICES,B & B - Landlords Payments,Housing
Swale Borough Council,29UM,22/02/2017,1148464,875.00,REARDON PROPERTIES,                         ,HOUSING SERVICES,B & B - Landlords Payments,Housing
Swale Borough Council,29UM,22/02/2017,1148465,490.00,REARDON PROPERTIES,                         ,HOUSING SERVICES,B & B - Landlords Payments,Housing
Swale Borough Council,29UM,22/02/2017,1148362,7000.00,ROBINS & DAY LIMITED,                         ,FINANCIAL SERVICES,Payments in Year,Ledger/Suspense Codes
Swale Borough Council,29UM,22/02/2017,1148406,430.54,ROYAL MAIL GROUP LTD,4138203                  ,DEMOCRATIC & ELECTORAL SERVICES,Postage,Central Services to the Public
Swale Borough Council,29UM,22/02/2017,1147927,1922.65,SHARP BUSINESS SYSTEMS UK,2136901                  ,MKS ICT,Equipment Rental,Holding Codes
Swale Borough Council,29UM,22/02/2017,1147928,3073.09,SHARP BUSINESS SYSTEMS UK,2136901                  ,MKS ICT,Equipment Rental,Holding Codes
Swale Borough Council,29UM,22/02/2017,1148530,364.00,SOUTH EAST BUILDING CO LTD,1786838                  ,HOUSING SERVICES,Housing Renovation Grants,Not used in this Structure
Swale Borough Council,29UM,22/02/2017,1148198,3122.17,SOUTHERN COMMUNICATIONS LTD,1328040                  ,MKS ICT,Telephone,Corporate & Democratic Core
Swale Borough Council,29UM,22/02/2017,1148321,14172.90,SWALE COMMUNITY LEISURE LIMITED,31132R                   ,LEISURE & OPEN SPACES,Procurement Contracts Only,Cultural and Related Services
Swale Borough Council,29UM,22/02/2017,1148322,29000.00,SWALE COMMUNITY LEISURE LIMITED,31132R                   ,LEISURE & OPEN SPACES,Procurement Contracts Only,Cultural and Related Services
Swale Borough Council,29UM,22/02/2017,1148325,16520.28,SWALE COMMUNITY LEISURE LIMITED,31132R                   ,LEISURE & OPEN SPACES,Procurement Contracts Only,Cultural and Related Services
Swale Borough Council,29UM,22/02/2017,1148461,4985.00,TIM MOYA ASSOCIATES,3028475                  ,LEISURE & OPEN SPACES,Consultancy/Specialist Advice,Cultural and Related Services
Swale Borough Council,29UM,22/02/2017,1148210,1435.00,TRAFALGAR TAVERN LTD,07999329                 ,HOUSING SERVICES,B & B - Landlords Payments,Housing
Swale Borough Council,29UM,22/02/2017,1148359,1225.00,TRAFALGAR TAVERN LTD,07999329                 ,HOUSING SERVICES,B & B - Landlords Payments,Housing
Swale Borough Council,29UM,22/02/2017,1148430,1575.00,TRAFALGAR TAVERN LTD,07999329                 ,HOUSING SERVICES,B & B - Landlords Payments,Housing
Swale Borough Council,29UM,22/02/2017,1148431,1680.00,TRAFALGAR TAVERN LTD,07999329                 ,HOUSING SERVICES,B & B - Landlords Payments,Housing
Swale Borough Council,29UM,22/02/2017,1148482,1400.00,TRAFALGAR TAVERN LTD,07999329                 ,HOUSING SERVICES,B & B - Landlords Payments,Housing
Swale Borough Council,29UM,22/02/2017,1148441,1230.00,VENN GROUP LIMITED,                         ,MKS LEGAL SERVICES,Agency/Contract Staff,Internal Trading Cost Centres
Swale Borough Council,29UM,22/02/2017,1148442,292.50,VENN GROUP LIMITED,                         ,MKS LEGAL SERVICES,Agency/Contract Staff,Internal Trading Cost Centres
Swale Borough Council,29UM,22/02/2017,1148319,639.93,WILDCARE,07543969                 ,LEISURE & OPEN SPACES,Equipment Purchase,Cultural and Related Services
Swale Borough Council,29UM,22/02/2017,1148347,800.00,WILLOW TREE HOME SOLUTIONS LTD,                         ,HOUSING SERVICES,Staying Put small repairs (contractors),Housing
Swale Borough Council,29UM,22/02/2017,1148352,490.00,WILLOW TREE HOME SOLUTIONS LTD,                         ,HOUSING SERVICES,Staying Put small repairs (contractors),Housing
